[Event "MCC Labor Day Schev 2024"]
[Site "New York"]
[Date "2024.09.02"]
[Round "7.5"]
[White "Stern, Kevin B"]
[Black "Colas, Joshua"]
[Result "0-1"]
[ECO "A13"]
[WhiteElo "1920"]
[BlackElo "2224"]
[Annotator "TA"]
[PlyCount "102"]
[EventDate "2024.08.28"]
[EventType "schev"]
[EventCountry "USA"]
[SourceTitle "playchess.com"]
[Source "ChessBase"]
[SourceQuality "1"]
[TimeControl "5400+30"]

{[%evp 14,102,33,0,68,20,25,18,22,10,15,-1,42,17,19,0,8,0,29,0,0,0,12,0,0,-8,0,-19,7,-14,-14,-41,-52,-34,-4,-131,-120,-132,-128,-123,-116,-148,-151,-198,-230,-205,-129,-147,-151,-138,-106,-92,-97,-96,-108,-166,-188,-256,-185,-163,-162,-207,-159,-177,-178,-234,-235,-215,-201,-218,-66,-108,-97,-115,-75,-345,-344,-316,-63,-95,0,-319,-101,-584,-560,-29979,-29980,-29978,-29978,-29981,-29981]} 1. c4 {[%emt 0:00:04]} e6 {[%emt 0:00:11]} 2. g3 {[%emt 0:00:08]} d5 {[%emt 0:00:06]} 3. Bg2 {[%emt 0:00:03]} Nf6 {[%emt 0:00:10]} 4. Nf3 {[%emt 0:00:04]} dxc4 {[%emt 0:00:33]} 5. Qa4+ {[%emt 0:00:13]} Nbd7 {[%emt 0:00:10]} 6. Qxc4 {[%emt 0:00:06]} a6 {[%emt 0:00:08]} 7. Qc2 {[%emt 0:00:50]} c5 {[%emt 0:03:27]} 8. O-O {[%emt 0:00:35]} Rb8 {[%emt 0:00:50]} (8... b5 $11) 9. d3 {[%emt 0:03:14]} (9. d4 $14 {might be stronger.}) 9... Bd6 $11 {[%emt 0:00:20]} 10. a4 {[%emt 0:04:05]} b6 {[%emt 0:01:40] The position is equal.} 11. Nc3 {[%emt 0:01:07]} Bb7 {[%emt 0:00:15]} 12. Rd1 {[%emt 0:01:15]} e5 {[%emt 0:05:57]} 13. b3 {[%emt 0:05:07]} O-O {[%emt 0:00:25]} 14. Bb2 {[%emt 0:00:27]} Re8 {[%emt 0:00:38]} 15. Rac1 {[%emt 0:02:12]} Qe7 {[%emt 0:01:40]} 16. Nd2 {[%emt 0:02:25]} Bxg2 {[%emt 0:01:46]} 17. Kxg2 {[%emt 0:00:11]} Qe6 {[%emt 0:05:21]} 18. Nde4 {[%emt 0:07:48]} Bf8 {[%emt 0:02:15]} 19. e3 {[%emt 0:10:24]} Rbc8 {[%emt 0:03:57]} 20. Rd2 {[%emt 0:03:42]} h5 {[%emt 0:02:42]} 21. h3 {[%emt 0:07:39]} Nh7 {[%emt 0:02:00]} 22. Ne2 {[%emt 0:02:52]} f5 {[%emt 0:02:21]} 23. N4c3 {[%emt 0:00:39]} h4 {[%emt 0:00:29]} 24. Nd1 {[%emt 0:03:33]} (24. e4 $11 {keeps the balance.}) 24... b5 $36 {[%emt 0:00:57][%mdl 2048] Black is in control.} 25. axb5 {[%emt 0:00:37]} axb5 {[%emt 0:00:03]} 26. Ndc3 {[%emt 0:03:03]} hxg3 {[%emt 0:02:53]} 27. fxg3 {[%emt 0:01:29]} Ndf6 {[%emt 0:00:02] Against e4} 28. Kh2 {[%emt 0:01:40]} (28. e4 $17 {might work better.}) 28... Ng5 $19 {[%emt 0:00:45][%cal Og5h3]} 29. Ng1 {[%emt 0:02:01]} Qc6 {[%emt 0:04:24][%cal Of5f4] Strongly threatening ...f4!} 30. Rf1 {[%emt 0:03:03]} Re6 {[%emt 0:00:34][%cal Of6g4] [#] ( -> ...Ng4+!)} 31. e4 {[%emt 0:07:27]} (31. Rxf5 {leads to mate.} Ng4+ 32. hxg4 Rh6+) 31... b4 {[%emt 0:04:46]} 32. Nd5 {[%emt 0:02:28]} fxe4 {[%emt 0:00:06]} 33. Nxf6+ {[%emt 0:01:42]} Rxf6 {[%emt 0:00:52]} 34. Rxf6 {[%emt 0:00:17]} (34. Qc4+ $17 Kh7 35. Rxf6 gxf6 36. Re2) 34... gxf6 {[%emt 0:00:05]} 35. Qc4+ {[%emt 0:03:52]} (35. Re2 {was called for.}) 35... Kh8 {[%emt 0:00:03]} 36. dxe4 {[%emt 0:00:55]} Qxe4 {[%emt 0:00:33]} 37. Qa6 {[%emt 0:02:56]} Qc6 {[%emt 0:00:15]} 38. Qc4 {[%emt 0:00:47] [#]} Qe6 $1 {[%emt 0:00:25]} 39. Qd3 {[%emt 0:02:23]} (39. Qf1 {is a better defense.}) 39... c4 {[%emt 0:02:10]} 40. bxc4 {[%emt 0:00:23]} Qxc4 {[%emt 0:00:02]} 41. Qg6 {[%emt 0:06:58]} Bg7 {[%emt 0:00:25]} ({Better is} 41... Qf7 $19 42. Qf5 Qe6 43. Qxe6 Nxe6) 42. h4 {[%emt 0:01:33]} Ne4 {[%emt 0:04:34]} 43. Rg2 {[%emt 0:03:29]} Nc3 {[%emt 0:02:23] Active counter play!} 44. h5 $2 {[%emt 0:05:57][%mdl 8192]} (44. Bxc3 $17 Qxc3 (44... bxc3 45. h5 $17) 45. Nh3) 44... Qe4 {[%emt 0:00:34]} 45. Qf7 {[%emt 0:00:00]} Rf8 $2 {[%emt 0:00:47]} (45... Nd5 $19 {Threatens to win with ...Ne3.} 46. Qb7 Rc7 47. Qa8+ Kh7) 46. Qb3 $1 $15 {[%emt 0:01:13]} Rc8 $2 {[%emt 0:01:29]} ({Don't go for} 46... Nd5 $2 47. Re2 Qg4 48. Qxd5 $18) (46... Nb5 $17 47. Nf3 Rd8) 47. Qf7 $1 $19 {[%emt 0:00:32]} Qf5 $2 {[%emt 0:08:26]} (47... Nd5 $19 {has better winning chances. aiming for ...Ne3.} 48. Qe6 Rc7) 48. Kh1 $2 {[%emt 0:00:30][%mdl 8192]} (48. Nh3 $17) 48... Ne4 {[%emt 0:00:32] ...Nf2+ is the strong threat.} 49. g4 {[%emt 0:00:30]} Nf2+ {[%emt 0:00:22] Black mates.} 50. Rxf2 {[%emt 0:00:29]} Qxf2 {[%emt 0:00:03]} 51. Qg6 {[%emt 0:00:24]} Qc2 {[%emt 0:00:30] Weighted Error Value: White=0.42/Black=0.40.  Loses game:     	White=2     	---        Missed win:     	---       	Black=2      Mistake:       	White=6     	Black=2      Inaccurate:     	White=3     	Black=6      OK:         	White=12    	Black=13     Best:        	White=1     	Black=3      Strong:       	White=2     	Black=1} 0-1

[Event "MCC Labor Day Schev 2024"]
[Site "New York"]
[Date "2024.09.02"]
[Round "7.6"]
[White "Zhao, Alex"]
[Black "Martin Del Campo Cardenas, Roberto Abel"]
[Result "1/2-1/2"]
[ECO "A26"]
[WhiteElo "2043"]
[BlackElo "2216"]
[Annotator "TA"]
[PlyCount "49"]
[EventDate "2024.08.28"]
[EventType "schev"]
[EventCountry "USA"]
[SourceTitle "playchess.com"]
[Source "ChessBase"]
[SourceQuality "1"]
[TimeControl "5400+30"]

{[%evp 23,49,10,23,11,8,-17,16,9,18,12,21,20,26,22,17,14,26,16,16,16,16,16,23,20,15,7,49,0]} 1. Nf3 {[%emt 0:06:54]} Nf6 {[%emt 0:00:06]} 2. g3 {[%emt 0:00:31]} g6 {[%emt 0:00:08]} 3. Bg2 {[%emt 0:00:06]} Bg7 {[%emt 0:00:05]} 4. O-O {[%emt 0:00:04]} O-O {[%emt 0:00:05]} 5. c4 {[%emt 0:00:07]} d6 {[%emt 0:00:08]} 6. Nc3 {[%emt 0:00:08]} Nc6 {[%emt 0:02:01]} 7. d3 {[%emt 0:01:17]} e5 {[%emt 0:00:08]} 8. Rb1 {[%emt 0:00:05]} a5 {[%emt 0:00:03]} 9. a3 {[%emt 0:00:11]} Nd4 {[%emt 0:00:07]} 10. b4 {[%emt 0:00:13]} axb4 {[%emt 0:00:03]} 11. axb4 {[%emt 0:00:07]} c6 {[%emt 0:00:04]} 12. b5 {[%emt 0:00:29]} Bg4 {[%emt 0:00:57]} 13. Nxd4 {[%emt 0:11:08]} exd4 {[%emt 0:00:10]} 14. bxc6 {[%emt 0:07:27]} bxc6 {[%emt 0:21:41]} (14... dxc3 {seems wilder.} 15. cxb7 Rb8 16. Be3 Re8) 15. Ne4 {[%emt 0:02:19] The position is equal.} Nxe4 {[%emt 0:00:44]} 16. Bxe4 {[%emt 0:01:12]} d5 {[%emt 0:06:55]} 17. cxd5 {[%emt 0:01:38]} cxd5 {[%emt 0:00:10]} 18. Bg2 {[%emt 0:06:41]} Re8 {[%emt 0:03:23]} 19. Re1 {[%emt 0:01:32]} Qd7 {[%emt 0:03:25]} 20. Bf4 {[%emt 0:20:08]} h6 {[%emt 0:04:42]} 21. h4 {[%emt 0:03:31]} Ra2 {[%emt 0:18:30]} 22. Qb3 {[%emt 0:04:29]} Raxe2 {[%emt 0:03:52]} 23. Rxe2 {[%emt 0:00:08]} Rxe2 {[%emt 0:05:33]} 24. Bxd5 {[%emt 0:07:48]} Be6 {[%emt 0:09:29]} 25. Bxe6 {[%emt 0:03:40] An uneventful encounter.   Weighted Error Value: White=0.04 (flawless) /Black=0.11 (very precise) .  Mistake:       	White=1     	---        Inaccurate:     	---       	Black=2      OK:         	White=6     	Black=4} (25. Qd1 $14) 1/2-1/2

[Event "MCC Labor Day Schev 2024"]
[Site "New York"]
[Date "2024.09.02"]
[Round "7.7"]
[White "Nasta, Kiren Vivek"]
[Black "Hoffman, Luc"]
[Result "1/2-1/2"]
[ECO "B33"]
[WhiteElo "2148"]
[BlackElo "2067"]
[Annotator "TA"]
[PlyCount "63"]
[EventDate "2024.08.28"]
[EventType "schev"]
[EventCountry "USA"]
[SourceTitle "playchess.com"]
[Source "ChessBase"]
[SourceQuality "1"]
[TimeControl "5400+30"]

{[%evp 25,63,0,0,0,0,0,0,23,36,32,23,29,27,35,27,21,71,56,58,19,34,12,70,100,67,53,54,0,0,0,103,-120,-133,-165,-170,-150,0,0,0,0]} 1. e4 {[%emt 0:00:03]} c5 {[%emt 0:00:03]} 2. Nf3 {[%emt 0:00:04]} e6 {[%emt 0:00:02]} 3. d4 {[%emt 0:00:02]} cxd4 {[%emt 0:00:07]} 4. Nxd4 {[%emt 0:00:02]} Nf6 {[%emt 0:00:08]} 5. Nc3 {[%emt 0:00:04]} Nc6 {[%emt 0:00:04]} 6. Ndb5 {[%emt 0:00:48]} d6 {[%emt 0:06:07]} 7. Bf4 {[%emt 0:00:04]} e5 {[%emt 0:00:16]} 8. Bg5 {[%emt 0:00:01]} a6 {[%emt 0:00:20]} 9. Na3 {[%emt 0:00:04]} b5 {[%emt 0:00:41]} 10. Nab1 {[%emt 0:00:02]} Be7 {[%emt 0:02:03]} 11. Bxf6 {[%emt 0:00:07]} Bxf6 {[%emt 0:00:35]} 12. a4 {[%emt 0:00:03]} b4 {[%emt 0:00:27]} 13. Nd5 {[%emt 0:00:05]} O-O {[%emt 1:26:07]} 14. Bc4 {[%emt 0:00:19]} Be6 {[%emt 0:00:00]} 15. O-O {[%emt 0:00:23]} a5 {[%emt 0:00:00]} 16. Qd3 {[%emt 0:10:08]} Ne7 {[%emt 0:00:00]} 17. Nxf6+ {[%emt 0:00:42]} gxf6 {[%emt 0:00:00]} 18. Rd1 {[%emt 0:01:24]} Rc8 {[%emt 0:00:00]} 19. Bxe6 {[%emt 0:03:57]} (19. Qxd6 Qxd6 (19... Bxc4 $2 20. c3 $19) 20. Rxd6 Rxc4 $19 (20... Bxc4 $2 21. Nd2 $19)) 19... fxe6 {[%emt 0:00:00]} 20. c3 {[%emt 0:00:08]} d5 {[%emt 0:00:00]} (20... Qb6 $11 {remains equal.}) 21. cxb4 $16 {[%emt 0:01:45]} axb4 {[%emt 0:00:00]} 22. a5 {[%emt 0:03:33]} dxe4 {[%emt 0:00:00]} 23. Qg3+ {[%emt 0:00:32]} Ng6 {[%emt 0:00:00]} ({Better is} 23... Kh8 $1 $11 24. Nc3 (24. Rxd8 $2 Rc1+) 24... Nd5 25. Nxe4 Ra8) 24. Nc3 $14 {[%emt 0:00:52]} (24. Rxd8 $2 Rc1+) 24... Qe7 {[%emt 0:00:00]} 25. Nxe4 {[%emt 0:00:37] White is more active.} f5 {[%emt 0:00:00]} 26. Nd6 {[%emt 0:01:00]} (26. Nd2 $14) 26... Rc6 $11 {[%emt 0:00:00]} 27. Nb5 {[%emt 0:17:30]} f4 {[%emt 0:00:00]} (27... Rc5 $11 28. Nd6 Rc6) 28. Qf3 $2 {[%emt 0:02:10]} (28. Qg4 $16 {and life is bright. Threatens to win with a6.} Qc5 29. h4 (29. Qe2 f3 $17) 29... Qxb5 30. h5) 28... Qc5 $17 {[%emt 0:00:00]} 29. Qd3 {[%emt 0:08:51] [#] Hoping for Qf1.} e4 $1 {[%emt 0:00:00][%mdl 512]} 30. Qf1 {[%emt 0:01:30] [#]} e3 {[%emt 0:00:00]} (30... f3 $1 $17 {...Nf4 would now be deadly.} 31. gxf3 Qh5 (31... Rxf3 $2 {is the wrong capture.} 32. Nd4 $18) (31... exf3 32. Kh1 $16)) 31. Nd4 $11 {[%emt 0:02:02]} Rd6 {[%emt 0:00:00]} 32. Nb3 {[%emt 0:06:09] Weighted Error Value: White=0.26 (precise) /Black=0.31.  Mistake:       	White=2     	Black=4      Inaccurate:     	White=1     	---        OK:         	White=11    	Black=6      Best:        	White=2     	Black=3} 1/2-1/2

[Event "MCC Labor Day Schev 2024"]
[Site "New York"]
[Date "2024.09.02"]
[Round "7.8"]
[White "Zaderman, Vitaly"]
[Black "Mottola, Max"]
[Result "0-1"]
[ECO "E14"]
[WhiteElo "2093"]
[BlackElo "2103"]
[Annotator "TA"]
[PlyCount "60"]
[EventDate "2024.08.28"]
[EventType "schev"]
[EventCountry "USA"]
[SourceTitle "playchess.com"]
[Source "ChessBase"]
[SourceQuality "1"]
[TimeControl "5400+30"]

{[%evp 15,60,0,0,0,0,-14,-12,-53,-40,-53,-42,-75,-12,-69,-28,-70,-62,-98,-40,-70,-85,-77,-66,-76,-58,-79,-43,-39,-37,-39,-35,-103,-97,-119,-101,-100,-102,-126,-127,-170,-167,-172,-166,-512,-515,-506,-491]} 1. d4 {[%emt 0:15:32]} d5 {[%emt 0:00:08]} 2. c4 {[%emt 0:00:07]} e6 {[%emt 0:00:05]} 3. Nc3 {[%emt 0:00:05]} Nf6 {[%emt 0:00:06]} 4. e3 {[%emt 0:00:13]} b6 {[%emt 0:00:13]} 5. cxd5 {[%emt 1:17:03]} exd5 {[%emt 0:00:43]} 6. Bd3 {[%emt 0:00:00]} Bd6 {[%emt 0:01:23]} 7. Nf3 {[%emt 0:00:00]} Bb7 {[%emt 0:00:27]} 8. O-O {[%emt 0:00:00]} O-O {[%emt 0:00:36]} 9. Nb5 {[%emt 0:00:00]} Be7 {[%emt 0:02:12]} 10. Qc2 {[%emt 0:00:00]} c5 {[%emt 0:02:37]} 11. Bd2 {[%emt 0:00:00] The position is equal.} a6 {[%emt 0:06:23]} 12. Nc3 {[%emt 0:00:00]} Nc6 {[%emt 0:00:06]} 13. a3 {[%emt 0:00:00] [#]} Bd6 {[%emt 0:07:22]} ({Black should try} 13... c4 $1 $17 {[%cal Rc4d3]} 14. Bf5 g6) 14. Rfd1 {[%emt 0:00:00]} (14. dxc5 $11 bxc5 15. Rad1) 14... Qe7 {[%emt 0:02:11]} 15. Rac1 {[%emt 0:00:00]} Rfe8 {[%emt 0:06:31]} 16. Be1 {[%emt 0:00:00]} Rad8 {[%emt 0:04:31]} (16... c4 $17 17. Bf1 b5) 17. Bf1 {[%emt 0:00:00]} c4 {[%emt 0:04:08]} 18. g3 {[%emt 0:00:00]} b5 {[%emt 0:01:04]} 19. Ra1 {[%emt 0:00:00]} Qe6 {[%emt 0:03:39]} 20. h3 {[%emt 0:00:00] [#] Ng5 would now be deadly.} Ne7 {[%emt 0:04:07]} 21. Bg2 {[%emt 0:00:00]} Nf5 {[%emt 0:07:06]} 22. Ng5 {[%emt 0:00:00]} Qc8 {[%emt 0:05:16]} 23. e4 {[%emt 0:00:00]} ({White should play} 23. Ne2 $15) 23... dxe4 $17 {[%emt 0:01:48]} 24. Ncxe4 {[%emt 0:00:00]} Nxe4 {[%emt 0:01:53]} 25. Nxe4 {[%emt 0:00:00]} Be7 {[%emt 0:07:24] Black is more active.} 26. d5 {[%emt 0:00:00]} Bxd5 {[%emt 0:05:48]} 27. Nd6 {[%emt 0:00:00]} Rxd6 {[%emt 0:06:33]} 28. Bxd5 {[%emt 0:00:00]} Red8 {[%emt 0:01:23]} 29. Ba5 $2 {[%emt 0:00:00]} (29. Bg2) 29... Rxd5 $19 {[%emt 0:01:45]} 30. Bxd8 {[%emt 0:00:00]} Qxd8 {[%emt 0:00:54] Weighted Error Value: White=0.44/Black=0.12 (very precise) .  Mistake:       	White=3     	Black=2      Inaccurate:     	White=6     	Black=2      OK:         	White=6     	Black=11     Best:        	---       	Black=1} 0-1

[Event "MCC Labor Day Schev 2024"]
[Site "New York"]
[Date "2024.09.02"]
[Round "7.9"]
[White "Khodzhamkuliev, Bahadur"]
[Black "Aravindakshan, Sahana"]
[Result "1/2-1/2"]
[ECO "A48"]
[WhiteElo "2187"]
[BlackElo "2003"]
[Annotator "TA"]
[PlyCount "60"]
[EventDate "2024.08.28"]
[EventType "schev"]
[EventCountry "USA"]
[SourceTitle "playchess.com"]
[Source "ChessBase"]
[SourceQuality "1"]
[TimeControl "5400+30"]

{[%evp 15,60,-7,0,-21,8,-13,0,-6,0,0,-15,0,-5,-9,0,-16,0,0,7,0,6,1,41,0,0,0,0,-7,-9,-2,27,0,39,15,29,-14,-16,-20,-3,-43,-21,-71,-69,-66,-45,-76,39]} 1. Nf3 {[%emt 0:00:23]} Nf6 {[%emt 0:00:04]} 2. d4 {[%emt 0:00:05]} g6 {[%emt 0:00:03]} 3. Bg5 {[%emt 0:00:09]} Bg7 {[%emt 0:00:04]} 4. Nbd2 {[%emt 0:00:07]} O-O {[%emt 0:00:06]} 5. c3 {[%emt 0:00:05]} d6 {[%emt 0:00:07]} 6. e4 {[%emt 0:00:08]} Nbd7 {[%emt 0:00:10]} 7. Be2 {[%emt 0:00:07]} e5 {[%emt 0:00:09]} 8. dxe5 {[%emt 0:00:18]} dxe5 {[%emt 0:00:23]} 9. Qc2 {[%emt 0:00:07]} b6 {[%emt 0:02:52]} 10. Nc4 {[%emt 0:01:58]} Qe8 {[%emt 0:03:29]} 11. O-O {[%emt 0:02:17] The position is equal.} Bb7 {[%emt 0:01:21]} 12. Nfd2 {[%emt 0:00:31]} Nc5 {[%emt 0:04:31]} 13. Bxf6 {[%emt 0:01:28]} Bxf6 {[%emt 0:00:13]} 14. Ne3 {[%emt 0:01:03]} Ne6 {[%emt 0:05:31]} 15. Bc4 {[%emt 0:01:37]} Bg7 {[%emt 0:07:03]} 16. Rfd1 {[%emt 0:01:58]} Rd8 {[%emt 0:13:52]} 17. Ndf1 {[%emt 0:02:13]} Rxd1 {[%emt 0:03:58]} 18. Rxd1 {[%emt 0:00:22]} b5 {[%emt 0:05:57]} 19. Bd5 {[%emt 0:01:36]} c6 {[%emt 0:00:51]} 20. Bxe6 {[%emt 0:02:37]} Qxe6 {[%emt 0:00:19]} 21. Qb3 {[%emt 0:00:43]} Qe7 {[%emt 0:02:46]} 22. Qb4 {[%emt 0:01:05]} Qe8 {[%emt 0:10:29]} 23. Qc5 {[%emt 0:02:55]} a6 {[%emt 0:01:19]} 24. Qb6 {[%emt 0:11:32]} Qe7 {[%emt 0:02:21]} 25. g4 {[%emt 0:05:41]} Bh6 {[%emt 0:07:50]} 26. Rd3 {[%emt 0:05:09]} Bf4 {[%emt 0:01:33]} 27. b4 {[%emt 0:02:02]} c5 {[%emt 0:06:08]} 28. Qxc5 {[%emt 0:09:33]} (28. bxc5 $11 Bxe3 (28... Bxe4 29. Nd5 $11) 29. Nxe3 Bxe4 30. Rd6) 28... Qxc5 $17 {[%emt 0:00:28]} 29. bxc5 {[%emt 0:00:04]} Bxe4 {[%emt 0:00:28]} 30. Rd6 {[%emt 0:00:47] [#]} a5 {[%emt 0:21:05] Weighted Error Value: White=0.18 (very precise) /Black=0.14 (very precise) .  Mistake:       	White=1     	Black=1      Inaccurate:     	White=5     	Black=4      OK:         	White=3     	Black=2} ({Better is} 30... Rc8 $1 $17 {[%cal Rc8c5]} 31. Nd2 (31. Nd5 $2 Bg5 $19) 31... Bc6) 1/2-1/2

[Event "MCC Labor Day Schev 2024"]
[Site "New York"]
[Date "2024.09.02"]
[Round "8.1"]
[White "Rohde, Michael"]
[Black "Zhao, Alex"]
[Result "1-0"]
[ECO "B07"]
[WhiteElo "2280"]
[BlackElo "2043"]
[Annotator "TA"]
[PlyCount "116"]
[EventDate "2024.08.28"]
[EventType "schev"]
[EventCountry "USA"]
[SourceTitle "playchess.com"]
[Source "ChessBase"]
[SourceQuality "1"]
[TimeControl "5400+30"]

{[%evp 17,116,22,14,9,0,0,16,-13,-7,-14,0,0,6,0,10,0,0,-6,14,-3,10,0,34,31,30,24,47,39,53,60,66,66,67,52,86,83,94,94,94,92,93,93,93,79,60,51,110,86,86,86,86,86,86,86,86,86,86,86,86,86,86,86,168,86,168,86,168,168,168,168,168,168,179,175,175,175,179,165,165,150,248,248,246,206,414,414,406,280,452,374,457,460,460,418,455,432,421,421,420,292,291]} 1. Nf3 {[%emt 1:31:00]} d6 {[%emt 0:01:01]} 2. d4 {[%emt 0:00:00]} g6 {[%emt 0:00:14]} 3. e4 {[%emt 0:00:00]} Bg7 {[%emt 0:00:20]} 4. Bc4 {[%emt 0:00:00]} Nf6 {[%emt 0:00:23]} 5. Nbd2 {[%emt 0:00:00]} O-O {[%emt 0:02:55]} 6. Qe2 {[%emt 0:00:00]} Nc6 {[%emt 0:04:43]} 7. c3 {[%emt 0:00:00]} e5 {[%emt 0:05:00]} 8. dxe5 {[%emt 0:00:00]} Nxe5 {[%emt 0:02:03]} 9. Nxe5 {[%emt 0:00:00]} dxe5 {[%emt 0:00:06]} 10. Nf3 {[%emt 0:00:00]} Qe7 {[%emt 0:00:34]} 11. O-O {[%emt 0:00:00]} Bd7 {[%emt 0:22:31]} 12. b4 {[%emt 0:00:00] The position is equal.} a5 {[%emt 0:19:46]} 13. b5 {[%emt 0:00:00] Repels Bc6} a4 {[%emt 0:02:26]} 14. Rb1 {[%emt 0:00:00]} c6 {[%emt 0:08:22]} 15. Bd2 {[%emt 0:00:00]} Ra5 {[%emt 0:06:12]} 16. Bd3 {[%emt 0:00:00]} Raa8 {[%emt 0:03:05]} ({Much worse is} 16... cxb5 $6 17. c4 Raa8 18. Bb4 $16 (18. cxb5 Rfc8 $16)) 17. c4 {[%emt 0:00:00]} c5 {[%emt 0:00:27]} 18. Rfd1 {[%emt 0:00:00]} Bg4 {[%emt 0:02:11]} 19. h3 {[%emt 0:00:00]} Bxf3 {[%emt 0:02:26]} 20. Qxf3 {[%emt 0:00:00]} Rfd8 {[%emt 0:01:34]} 21. Be3 {[%emt 0:00:00]} b6 {[%emt 0:00:49]} 22. Bc2 {[%emt 0:00:00]} Ne8 {[%emt 0:04:38]} 23. Rxd8 {[%emt 0:00:00]} Qxd8 {[%emt 0:00:04]} 24. Rd1 {[%emt 0:00:00]} Qe7 {[%emt 0:01:14] Black is weak on the light squares} 25. Rd2 {[%emt 0:00:00] White is much more active.} Rd8 {[%emt 0:02:49]} 26. Bxa4 {[%emt 0:00:00]} (26. Rxd8 Qxd8 27. Bxa4 Nc7) 26... Rxd2 {[%emt 0:01:38]} 27. Bxd2 {[%emt 0:00:00]} Qd8 {[%emt 0:00:25]} 28. Qe3 {[%emt 0:00:00]} Nc7 {[%emt 0:01:20]} 29. Bd1 {[%emt 0:07:07]} Ne6 {[%emt 0:01:03]} 30. a4 {[%emt 0:00:12]} Bf6 {[%emt 0:01:06][%cal Bg7f6,Bf6e7,Be7d6,Bd6c7][%mdl 32]} 31. Qe2 {[%emt 0:01:43]} Nd4 {[%emt 0:00:48]} ({Black should play} 31... Nf4 $14 32. Bxf4 exf4) 32. Qd3 {[%emt 0:00:32]} Be7 {[%emt 0:03:22][%cal Od4f3]} 33. Bc3 {[%emt 0:00:36]} Bd6 {[%emt 0:00:23]} 34. Qd2 {[%emt 0:00:44]} Bc7 {[%emt 0:00:05]} 35. g3 {[%emt 0:01:55]} Qa8 {[%emt 0:00:19]} 36. Qe3 {[%emt 0:01:13]} Qb8 {[%emt 0:00:22]} 37. h4 {[%emt 0:00:38]} h5 {[%emt 0:01:23]} 38. Kg2 {[%emt 0:00:27]} Kh7 {[%emt 0:00:27]} 39. Bd2 {[%emt 0:00:41]} Qd8 {[%emt 0:00:45]} (39... Qa8 $16 {was called for.}) 40. Qh6+ $18 {[%emt 0:01:18]} Kg8 {[%emt 0:00:02]} 41. Qg5 {[%emt 0:00:15]} ({Better is} 41. Bg5 $18 Qf8 42. Kf1) 41... Ne6 {[%emt 0:00:43]} (41... Qd6 $16) 42. Qxd8+ {[%emt 0:00:27]} Bxd8 {[%emt 0:00:03][%mdl 4096] Endgame. KBB-KBN} 43. Bc3 {[%emt 0:02:09]} Bc7 {[%emt 0:00:32]} 44. Kf3 {[%emt 0:00:30]} f6 {[%emt 0:00:45]} 45. Ke3 {[%emt 0:00:23]} Kf7 {[%emt 0:00:10]} 46. Be2 {[%emt 0:00:20]} Ke7 {[%emt 0:00:47]} 47. Bf1 {[%emt 0:00:11]} Kf7 {[%emt 0:00:49]} 48. Bh3 {[%emt 0:00:16]} Ke7 {[%emt 0:00:43] [#]} (48... Nd4 $16 49. Bg2 g5) 49. Bxe6 $1 {[%emt 0:00:32]} Kxe6 {[%emt 0:00:01] KB-KB} 50. Kd3 {[%emt 0:00:22]} f5 $2 {[%emt 0:00:45]} (50... Bd8 51. Bd2 Kd7) 51. Bd2 {[%emt 0:00:34]} f4 {[%emt 0:00:43]} 52. Kc3 {[%emt 0:00:26]} Bd8 {[%emt 0:00:27]} 53. Kb3 {[%emt 0:01:41]} ({Less strong is} 53. gxf4 Bxh4 54. f3 Bd8 $16) 53... g5 {[%emt 0:00:22]} 54. hxg5 {[%emt 0:00:18]} Bxg5 {[%emt 0:00:06] [#] And now ...fxg3 would win.} 55. a5 {[%emt 0:00:43]} bxa5 {[%emt 0:00:34]} 56. Bxa5 {[%emt 0:00:07] Threatens to win with b6.} Kd6 {[%emt 0:01:00]} 57. Ka4 {[%emt 0:00:14]} f3 {[%emt 0:00:33]} 58. Be1 {[%emt 0:00:42] aiming for Ka5.} Bd8 {[%emt 0:01:06] Weighted Error Value: White=0.15 (very precise) /Black=0.18 (very precise) .  Mistake:       	White=1     	Black=5      Inaccurate:     	White=3     	Black=3      OK:         	White=14    	Black=16     Best:        	White=2     	Black=2} 1-0